bitfinex/quotes_ETHUSD_20220310
["timestamp","ask_amount","ask_price","bid_price","bid_amount"]
[1646933276340,0.06783816,2598.6,2598.1,0.96267]
[1646933276542,0.00377413,2598.4,2598.1,0.96267]
[1646933277142,0.00377413,2598.4,2598.2,3.5]
[1646933277343,0.00377413,2598.4,2598.1,1.92526]
[1646933277344,0.00377413,2598.4,2598.1,2.38626]
[1646933277543,1.1305,2598.8,2598.1,2.38626]
[1646933277743,0.00377411,2598.4,2598.3,1.19067589]
[1646933277945,0.00377411,2598.4,2598.1,1.92526]
[1646933278684,0.06415311,2599.0,2598.1,1.92526]
[1646933278890,0.00377411,2598.4,2598.1,1.92526]
[1646933279089,0.00377411,2598.4,2598.2,0.96246]
[1646933279890,0.06415311,2599.0,2598.2,0.96246]
[1646933280091,0.00377409,2598.4,2598.3,0.96255]
[1646933280291,0.00377409,2598.4,2598.2,2.88755]
[1646933280991,0.00377409,2598.4,2598.2,1.92509]
[1646933281193,0.05892799,2598.8,2598.2,1.92509]
[1646933281393,0.0037741,2598.4,2598.2,1.92509]
[1646933281592,0.95375546,2598.4,2598.2,1.92509]
[1646933281793,1.01938621,2598.4,2598.2,1.92509]
[1646933281992,1.01938621,2598.4,2598.1,1.92509]
[1646933281993,0.73766279,2598.3,2598.1,1.92509]
[1646933282193,0.73766279,2598.3,2597.7,0.0037752]
[1646933282194,0.0679566,2598.2,2597.7,0.0037752]
[1646933282446,0.71252643,2598.0,2597.7,1.92576]
[1646933282636,0.063857,2597.9,2597.7,1.92576]
[1646933282836,0.73766279,2597.8,2597.7,1.92576]
[1646933283041,1.51404622,2597.9,2597.7,1.92576]
[1646933283236,0.94998136,2598.2,2597.7,1.92576]
[1646933283237,0.79395744,2597.8,2597.7,1.92576]
[1646933283436,0.79395744,2597.8,2597.7,2.77276925]
[1646933284643,0.79395744,2597.8,2597.7,1.92576]
[1646933284843,0.79395744,2597.8,2597.7,2.77280958]
[1646933285043,0.79395744,2597.8,2597.7,1.92576]
[1646933285243,0.79395744,2597.8,2597.7,2.77285594]
[1646933285444,0.79395744,2597.8,2597.7,1.92576]
[1646933285648,0.79395744,2597.8,2597.7,2.77288058]
[1646933285944,0.79395744,2597.8,2597.7,2.77290213]
[1646933286184,0.79395744,2597.8,2597.7,2.7729776]
[1646933286388,0.79395744,2597.8,2597.7,2.77319474]
[1646933286585,0.79395744,2597.8,2597.7,1.92576]
[1646933287287,0.79395744,2597.8,2597.7,2.7673536]
[1646933287485,0.79395744,2597.8,2597.7,1.92576]
[1646933287685,0.79395744,2597.8,2597.7,2.76593324]
[1646933287886,0.79395744,2597.8,2597.7,1.92447096]
[1646933288086,0.79395744,2597.8,2597.7,2.76594674]
[1646933288292,0.79395744,2597.8,2597.7,1.92447096]
[1646933288487,0.79395744,2597.8,2597.7,2.76591768]
[1646933288687,0.79395744,2597.8,2597.7,1.92447096]
[1646933288891,0.79395744,2597.8,2597.7,2.76585899]
[1646933289190,0.73766279,2597.8,2597.7,1.92447096]
[1646933289391,1.45018922,2598.0,2597.7,2.76582869]
[1646933289592,1.45018922,2598.0,2597.7,0.23022529]
[1646933290244,1.45018922,2598.0,2597.8,0.87290172]
[1646933290443,1.45018922,2598.0,2597.8,1.83577172]
[1646933290643,0.73766279,2597.9,2597.8,0.96287]
[1646933290846,0.73766279,2597.9,2597.8,1.83567078]
[1646933302987,0.71252643,2597.9,2597.7,0.00378107]
[1646933303186,1.45018922,2597.9,2597.7,0.00378107]
[1646933303387,0.73766279,2597.8,2597.7,0.00378107]
[1646933303791,0.73766279,2597.8,2597.7,0.88284585]
[1646933303992,0.73766279,2597.8,2597.7,0.87906478]
[1646933304392,1.45018922,2597.8,2597.6,0.25377222]
[1646933304792,0.73766279,2597.7,2597.6,0.25377222]
[1646933305038,0.73766279,2597.7,2597.6,1.12924271]
[1646933305438,0.73766279,2597.7,2597.6,1.13301495]
[1646933305636,0.73766279,2597.7,2597.6,0.25377224]
[1646933305837,0.73766279,2597.7,2597.6,0.00377224]
[1646933306037,1.70080279,2597.7,2597.6,0.00377224]
[1646933306242,2.41373611,2597.7,2597.1,0.87941311]
[1646933306437,1.70079799,2597.6,2597.1,0.87941311]
[1646933306640,0.73766279,2597.5,2597.1,0.87941311]
[1646933306938,0.73766279,2597.4,2597.1,0.87941311]
[1646933307140,0.73766279,2597.3,2597.1,0.87941311]
[1646933307337,0.73766279,2597.2,2597.1,0.87941311]
[1646933307737,0.73766279,2597.2,2597.1,0.88306379]
[1646933308801,0.73766279,2597.2,2597.1,0.87941311]
[1646933308997,0.73766279,2597.2,2597.1,1.90167069]
[1646933309199,1.25375,2597.8,2597.1,1.90167069]
[1646933309397,1.25375,2597.8,2597.2,0.87941311]
[1646933309398,0.69995819,2597.7,2597.2,0.87941311]
[1646933310197,0.69995819,2597.7,2597.3,0.00377665]
[1646933310399,0.69995819,2597.7,2597.3,0.88318976]
[1646933310597,0.69995819,2597.7,2597.4,1.84224311]
[1646933310797,0.69995819,2597.7,2597.5,0.87941311]
[1646933311000,0.69995819,2597.7,2597.6,0.87941311]
[1646933311200,0.69995819,2597.7,2597.4,0.87866946]
[1646933311405,0.69995819,2597.7,2597.5,0.87866946]
[1646933311899,0.69985587,2597.6,2597.5,2.80430946]
[1646933312102,1.41279532,2598.1,2597.5,2.80430946]
[1646933312300,0.69987924,2598.0,2597.6,0.87866946]
[1646933312540,0.69987924,2597.9,2597.6,0.87866946]
[1646933312741,0.69987924,2597.8,2597.6,0.87866946]
[1646933312938,0.69987924,2597.7,2597.6,0.87866946]
[1646933313142,1.41281256,2598.1,2597.6,0.87866946]
[1646933313341,1.47057474,2598.0,2597.7,0.96296]
[1646933313540,0.76565977,2597.9,2597.8,0.87867009]
[1646933313742,0.66493335,2597.6,2597.5,2.17564]
[1646933313946,0.66493335,2597.6,2597.5,3.07600971]
[1646933314142,1.36481259,2597.6,2597.5,3.07600971]
[1646933314742,1.36481259,2597.6,2597.5,3.07223251]
[1646933320542,0.66493335,2597.6,2597.5,3.07223251]
[1646933321647,0.05237228,2598.2,2597.5,4.74340314]
[1646933321842,0.66949694,2598.1,2597.7,0.96259]
[1646933322043,0.66949694,2598.1,2597.8,3.28249251]
[1646933322241,0.06697781,2598.6,2597.9,0.89659251]
[1646933322441,0.00377203,2598.4,2598.0,0.711]
[1646933322642,0.00377203,2598.4,2598.3,1.17565039]
[1646933322842,0.00377203,2598.4,2598.3,2.0722429]
[1646933323046,0.00377203,2598.4,2598.3,0.89659251]
[1646933323344,0.6692053,2598.5,2598.3,0.89659251]
[1646933323544,0.67297799,2598.5,2598.3,0.89659251]
[1646933324296,0.6692053,2598.5,2598.3,0.89659251]
[1646933324693,0.67297796,2598.5,2598.3,0.89659251]
[1646933325591,0.6692053,2598.5,2598.3,0.89659251]
[1646933325792,0.67297795,2598.5,2598.3,0.89659251]
[1646933326592,0.06128223,2598.4,2598.3,0.89659251]
[1646933326793,0.73048753,2598.4,2598.2,0.96235]
[1646933326995,0.7237084,2598.3,2598.1,1.9247]
[1646933327193,0.72851279,2598.2,2598.1,1.9247]
[1646933327454,0.6692053,2598.2,2598.1,2.83117826]
[1646933327843,0.9628042,2598.4,2598.1,2.83117826]
[1646933327844,0.6692053,2598.3,2598.1,2.83117826]
[1646933328044,0.6692053,2598.3,2598.2,0.90647826]
[1646933328645,0.6692053,2598.3,2598.1,0.90647826]
[1646933332991,1.3490758,2598.6,2598.1,0.90647826]
[1646933333191,0.00377267,2598.4,2598.1,2.83173826]
[1646933333391,0.00377267,2598.4,2598.2,0.90647826]
[1646933333996,0.66800981,2598.5,2598.2,0.90647826]
[1646933334196,0.0037727,2598.4,2598.2,0.90647826]
[1646933334396,0.0037727,2598.4,2598.2,2.83173826]
[1646933334597,5.9269,2598.7,2598.4,0.00058241]
[1646933334796,0.66792826,2598.6,2598.4,0.00058241]
[1646933335247,0.3864,2599.1,2598.4,0.00058241]
[1646933335248,1.5852,2599.1,2598.4,0.00058241]
[1646933335445,0.66775622,2599.0,2598.4,0.00058241]
[1646933335643,0.66775622,2599.0,2598.4,0.90706067]
[1646933336547,0.66775622,2599.0,2598.4,2.02638708]
[1646933336747,0.66775622,2599.0,2598.5,0.90647826]
[1646933337049,0.66775622,2599.0,2598.5,5.36901826]
[1646933337248,0.66775622,2599.0,2598.6,0.90647826]
[1646933337447,0.05817213,2598.9,2598.6,3.08128826]
[1646933337653,0.05817213,2598.9,2598.7,0.90647826]
[1646933337849,0.06174458,2599.1,2598.7,0.90647826]
[1646933338047,0.06696625,2598.9,2598.7,0.90647826]
[1646933338447,0.0665021,2599.1,2598.7,0.90647826]
[1646933338695,0.66704294,2599.0,2598.7,0.90647826]
[1646933338902,0.05424371,2598.9,2598.7,0.90647826]
[1646933339101,0.0580152,2598.9,2598.7,1.86888826]
[1646933339301,0.00377149,2598.9,2598.7,0.96241]
[1646933339702,0.06213418,2598.9,2598.7,0.96241]
[1646933339904,0.05836269,2598.9,2598.7,0.96241]
[1646933340306,0.06231522,2598.9,2598.7,0.96241]
[1646933340503,0.06231522,2598.9,2598.8,0.90281722]
[1646933340703,0.06231522,2598.9,2598.8,0.90280879]
[1646933341107,0.05836269,2598.9,2598.8,0.90280879]
[1646933341303,0.3864,2599.2,2598.9,0.96238]
[1646933341304,0.06590447,2599.2,2598.9,0.96238]
[1646933341506,0.00395251,2599.0,2598.9,0.96238]
[1646933341703,0.00395251,2599.0,2598.9,1.86490183]
[1646933342105,0.00395251,2599.0,2598.9,6.55692274]
[1646933342304,0.00395251,2599.0,2598.9,3.05692274]
[1646933342544,0.06306597,2599.6,2599.3,1.19757522]
[1646933342744,0.01580745,2599.5,2599.3,2.15981522]
[1646933343642,0.06306597,2599.6,2599.3,2.15981522]
[1646933344047,0.00374444,2599.5,2599.3,2.15981522]
[1646933344847,0.06306597,2599.6,2599.3,2.15981522]
[1646933345247,0.06769956,2599.8,2599.3,2.15981522]
[1646933345650,0.06769956,2599.8,2599.3,0.96224]
[1646933347499,0.00394923,2599.7,2599.3,0.96224]
[1646933348302,0.06769956,2599.8,2599.3,0.96224]
[1646933348699,0.00394925,2599.6,2599.3,0.96224]
[1646933349500,0.06769956,2599.8,2599.3,0.96224]
[1646933349700,0.108558,2599.8,2599.3,4.46224]
[1646933349950,0.00394928,2599.6,2599.4,0.89759157]
[1646933350140,0.00394928,2599.6,2599.5,3.5]
[1646933350341,12.7847,2600.1,2599.6,0.95794072]
[1646933350542,0.04425869,2600.0,2599.7,5.35871915]
[1646933350741,0.04425869,2600.0,2599.8,0.89653634]
[1646933350947,2.4656,2600.5,2599.9,3.5]
[1646933350948,0.05613993,2600.4,2599.9,3.5]
[1646933351140,0.05613993,2600.4,2599.9,3.75]
[1646933351542,0.04894108,2600.6,2600.1,0.96182]
[1646933351741,0.04894108,2600.6,2600.1,4.46182]
[1646933351943,0.04894108,2600.6,2600.2,3.5]
[1646933352242,6.90017541,2600.9,2600.8,0.98351169]
[1646933352443,0.00897541,2600.9,2600.8,0.98351169]
[1646933352644,0.05113618,2601.0,2600.8,0.98351169]
[1646933353044,0.05060408,2601.2,2600.7,0.96162]
[1646933353244,0.05060408,2601.2,2600.5,1.92323]
[1646933353555,0.05060408,2601.2,2599.5,2.88537]
[1646933353556,3.3864,2601.0,2599.5,2.88537]
[1646933353752,3.3864,2601.0,2598.9,1.2511476]
[1646933353753,3.0,2600.3,2598.9,1.2511476]
[1646933353949,1.5204,2600.2,2599.3,5.96205488]
[1646933354152,0.3864,2599.8,2599.3,7.88687488]
[1646933354348,0.05973957,2599.7,2599.3,7.88687488]
[1646933354750,4.25494,2599.8,2599.7,0.00660704]
[1646933354948,0.75494,2599.8,2599.7,0.00660704]
[1646933356154,0.6864,2599.8,2599.7,0.00660704]
[1646933356352,1.3488874,2600.0,2599.7,0.00660704]
[1646933356555,0.19393037,2600.1,2599.7,0.00660704]
[1646933356556,0.9622549,2600.1,2599.7,0.00660704]
[1646933356753,5.85419997,2600.2,2599.7,0.00660704]
[1646933357154,5.85419997,2600.2,2599.7,0.01063448]
[1646933357354,0.3864,2600.1,2599.7,0.01063448]
[1646933357556,0.3864,2600.1,2599.7,0.97288448]
[1646933357755,15.6764,2600.1,2599.7,0.97288448]
[1646933357958,12.2449,2600.1,2599.7,0.97288448]
[1646933358156,16.0449,2600.1,2599.7,0.96885704]
[1646933358358,13.5449,2600.1,2599.8,0.00118656]
[1646933358559,0.06848,2600.0,2599.8,0.00118656]
[1646933358763,0.3864,2599.9,2599.8,0.00118656]
[1646933358958,3.8864,2599.9,2599.8,0.00118656]
[1646933359164,4.1864,2599.9,2599.7,0.00660704]
[1646933359359,3.8864,2599.8,2599.7,0.00660704]
[1646933359560,3.8864,2599.8,2599.7,0.00779363]
[1646933359760,3.95491,2599.8,2599.7,0.00779363]
[1646933360182,3.8864,2599.8,2599.7,0.00779363]
[1646933360365,3.8864,2599.8,2599.7,0.00660704]
[1646933361190,0.3864,2599.8,2599.7,0.00660704]
[1646933361401,1.30215,2599.9,2599.7,0.00660704]
[1646933361598,0.9623761,2600.0,2599.7,0.00660704]
[1646933361797,2.6576062,2600.1,2599.7,0.00660704]
[1646933362697,1.6953,2600.1,2599.7,2.08612036]
[1646933363102,0.4617,2600.1,2599.8,0.00385095]
[1646933363299,0.4617,2600.1,2599.8,1.92822095]
[1646933364007,0.4617,2600.1,2599.8,1.92437]
[1646933364402,0.4617,2600.1,2599.8,1.92822092]
[1646933365253,1.1574,2600.4,2599.9,11.0]
[1646933365460,7.2289,2600.8,2600.0,2.79019877]
[1646933365653,0.04224117,2600.9,2600.1,0.86445667]
[1646933365852,0.00374516,2601.0,2600.2,0.85904885]
[1646933366051,0.00374516,2601.0,2600.3,0.85643865]
[1646933366251,0.00374516,2601.0,2600.3,0.07638462]
[1646933366453,5.79740531,2601.3,2600.4,3.18143481]
[1646933366658,5.796,2601.3,2600.6,0.09059816]
[1646933366855,0.0037458,2601.0,2600.6,0.09059816]
[1646933367654,5.796,2601.3,2600.8,0.96156]
[1646933367855,4.6682,2601.3,2601.1,1.01230237]
[1646933368057,2.33749882,2601.6,2601.1,1.01230237]
[1646933368458,0.04319882,2601.6,2601.1,1.01230237]
[1646933370100,1.06854,2601.8,2601.5,0.95286389]
[1646933370101,1.0,2601.8,2601.5,0.95286389]
[1646933370304,0.04246799,2602.0,2601.5,0.95286389]
[1646933370506,7.08700531,2602.1,2601.5,0.95286389]
[1646933370507,4.6682,2602.1,2601.5,0.95286389]
[1646933370702,1.0,2602.2,2601.6,0.07365409]
[1646933371102,1.0,2602.2,2601.6,3.57365409]
[1646933371304,1.0,2602.2,2601.8,0.07163188]
[1646933371505,7.4786,2602.5,2601.8,3.95803188]
[1646933371808,2.2128,2602.6,2601.9,0.08146071]
[1646933372001,2.2128,2602.6,2601.8,0.3864]
[1646933372458,2.2128,2602.6,2602.5,1.16634356]
[1646933372644,1.0,2602.6,2602.5,1.16634356]
[1646933374049,1.0,2602.6,2602.4,0.96117]
[1646933374250,1.0,2602.6,2602.3,1.92233]
[1646933374651,1.0,2602.6,2602.3,0.23090465]
[1646933375050,1.00383964,2602.6,2602.3,0.23090465]
[1646933375451,0.00383964,2602.6,2602.3,0.23090465]
[1646933375851,0.05111444,2602.6,2602.3,0.23090465]
[1646933376050,1.3951248,2602.6,2602.3,0.23090465]
[1646933376292,0.42774892,2602.5,2602.0,1.92283]
[1646933376493,13.7166216,2602.6,2602.0,1.92283]
[1646933376494,0.04449746,2602.4,2602.0,1.92283]
[1646933377496,0.00374201,2602.3,2602.0,1.92283]
[1646933378496,0.04449746,2602.4,2602.0,1.92283]
[1646933378901,0.00374203,2602.3,2602.0,1.92283]
[1646933379604,0.04449746,2602.4,2602.0,1.92283]
[1646933379954,0.00375634,2602.3,2602.0,1.92283]
[1646933380847,0.04449746,2602.4,2602.0,1.92283]
[1646933381248,0.00375634,2602.3,2602.0,1.92283]
[1646933381648,0.00375634,2602.3,2602.1,0.08816198]
[1646933381847,0.00375634,2602.3,2602.1,1.04934198]
[1646933382352,0.0512149,2602.9,2602.1,1.04934198]
[1646933382647,0.01502302,2602.7,2602.5,1.12326652]
[1646933382851,0.01502302,2602.7,2602.4,0.07712854]
[1646933383449,8.18015454,2603.1,2602.4,0.07712854]
[1646933383692,0.00253455,2602.7,2602.4,0.07712854]
[1646933383896,0.00253455,2602.7,2602.3,1.92237]
[1646933384095,0.00253455,2602.7,2602.3,1.07321146]
[1646933384494,0.0463003,2603.0,2602.3,1.07321146]
[1646933384694,1.9689737,2603.0,2602.2,0.192]
[1646933384902,0.00246471,2602.8,2602.1,2.01190532]
[1646933385299,0.04499551,2602.8,2602.1,2.01190532]
[1646933385699,2.3515589,2602.8,2602.1,1.92249]
[1646933385900,0.04400961,2602.6,2602.1,1.92249]
[1646933386899,1.00538031,2602.6,2602.0,1.9037595]
[1646933387100,1.00538031,2602.6,2602.1,0.00149083]
[1646933387301,0.05051126,2602.5,2602.1,0.00149083]
[1646933388075,0.05051126,2602.5,2602.0,0.9423995]
[1646933388276,0.05051126,2602.5,2602.1,0.96132]
[1646933388476,0.05051126,2602.5,2602.1,0.96533014]
[1646933389180,1.3477745,2602.6,2602.1,0.96533014]
[1646933389379,1.3477745,2602.6,2601.9,1.92262]
[1646933389380,1.34784,2602.6,2601.9,1.92262]
[1646933389576,0.0490614,2602.5,2602.1,0.00401014]
[1646933390578,0.0490614,2602.5,2601.9,1.92262]
[1646933390778,0.0490614,2602.5,2602.1,0.00370849]
[1646933391078,0.3864,2602.4,2602.1,0.00370849]
[1646933391312,0.05030611,2602.3,2602.1,0.00370849]
[1646933391607,0.3864,2602.2,2602.1,0.00370849]
[1646933391806,0.3864,2602.2,2601.3,0.27126419]
[1646933392009,0.3864,2601.8,2601.2,0.59891365]
[1646933392308,0.05073004,2601.6,2601.2,0.59891365]
[1646933392509,0.04818212,2601.5,2601.2,0.59891365]
[1646933392709,0.04818212,2601.5,2600.6,0.08742398]
[1646933393307,0.04818212,2601.5,2600.9,1.92334]
[1646933394411,0.04818212,2601.5,2601.1,0.00375585]
[1646933394611,0.04818212,2601.5,2601.1,0.96544585]
[1646933395257,0.04818212,2601.5,2600.9,1.92334]
[1646933395651,1.00994492,2601.5,2601.2,0.00375581]
[1646933395852,0.3,2601.4,2601.2,0.00375581]
[1646933396052,0.04494211,2601.3,2601.2,0.00375581]
[1646933396252,0.3,2601.4,2601.3,0.00106829]
[1646933396653,0.02893171,2601.0,2600.9,0.96181]
[1646933401703,0.02893171,2601.0,2600.8,0.00348938]
[1646933401908,1.34843,2600.9,2600.8,0.00348938]
[1646933402103,0.96203,2600.9,2600.8,8.938e-05]
[1646933402303,17.08005899,2600.9,2600.8,8.938e-05]
[1646933402543,0.04298226,2600.8,2600.5,5.96205488]
[1646933402746,0.11149226,2600.8,2600.5,5.96205488]
[1646933402943,0.06851,2600.8,2600.5,0.96197]
[1646933403248,0.02893171,2601.0,2600.5,0.96197]
[1646933404550,1.0,2600.6,2600.5,0.96197]
[1646933404750,0.02893171,2601.0,2600.5,0.96197]
[1646933406591,0.02893171,2601.0,2600.6,0.00390574]
[1646933407393,0.02893171,2601.0,2600.7,0.07076481]
[1646933407596,0.02893171,2601.0,2600.8,0.76408261]
[1646933407793,0.02893171,2601.0,2600.8,2.7769155]
[1646933407993,0.02893171,2601.0,2600.9,0.76408261]
[1646933409401,0.02893171,2601.0,2600.9,1.28096081]
[1646933411063,0.02893171,2601.0,2600.9,4.78096081]
[1646933411453,0.02893171,2601.0,2600.9,1.28096081]
[1646933411652,0.00140531,2601.6,2601.0,0.3864]
[1646933411858,0.00140531,2602.0,2601.1,4.65048261]
[1646933412057,0.06854,2602.1,2601.8,1.22276583]
[1646933412058,0.80792814,2602.1,2601.8,1.22276583]
[1646933412256,1.0,2602.2,2601.9,0.84156289]
[1646933412452,0.06847,2602.6,2602.0,0.83548801]
[1646933412453,0.00392762,2602.4,2602.0,0.83548801]
[1646933412652,0.00392762,2602.4,2602.1,0.83354067]
[1646933412854,0.00392762,2602.4,2602.2,0.8359716]
[1646933413153,0.00392762,2602.4,2602.2,0.07188899]
[1646933413357,0.8159789,2602.6,2602.3,0.75093091]
[1646933413558,6.00368385,2603.1,2602.4,0.07291124]
[1646933413559,0.0684,2602.9,2602.4,0.07291124]
[1646933413808,0.01006681,2602.8,2602.5,0.75093091]
[1646933414002,0.01006681,2602.8,2602.6,1.03757765]
[1646933414202,0.01006681,2602.8,2602.6,0.96109]
[1646933414601,0.9611678,2603.2,2602.7,0.5168782]
[1646933414803,0.81572406,2603.1,2602.7,0.5168782]
[1646933415002,0.00251708,2602.8,2602.7,0.5168782]
[1646933415706,0.81572406,2603.0,2602.7,0.5168782]
[1646933416207,0.00251708,2602.9,2602.7,0.5168782]
[1646933416503,0.00251708,2602.9,2602.6,0.94197621]
[1646933417004,0.81572406,2603.0,2602.6,0.94197621]
[1646933417206,12.83544566,2603.3,2602.7,3.58219019]
[1646933417207,0.0039999,2602.9,2602.7,3.58219019]
[1646933417461,0.0039999,2602.9,2602.8,0.08061805]
[1646933418147,1.1873,2603.4,2602.8,0.08061805]
[1646933418448,0.00399985,2603.0,2602.9,1.92205]
[1646933418860,0.00399985,2603.0,2602.8,0.08061805]
[1646933419055,0.00399985,2603.0,2602.7,0.96101]
[1646933419455,0.8222106,2603.2,2602.7,0.96101]
[1646933419657,12.6122106,2603.2,2602.7,0.96101]
[1646933419961,12.6122106,2603.2,2602.8,1.0]
[1646933419962,12.18039982,2603.0,2602.8,1.0]
[1646933420157,12.61191277,2602.9,2602.2,10.05952688]
[1646933420356,12.09,2602.9,2602.2,10.05952688]
[1646933420760,0.3,2602.9,2602.2,10.05952688]
[1646933420956,0.00400002,2602.7,2602.3,1.92253]
[1646933421197,0.00400002,2602.7,2602.4,0.07067811]
[1646933421796,1.26134,2602.9,2602.4,0.07067811]
[1646933422198,0.00386501,2602.7,2602.4,1.03190811]
[1646933422498,0.00386501,2602.7,2602.6,0.08979358]
[1646933423097,0.00140531,2603.3,2602.6,0.08979358]
[1646933423298,0.00379078,2602.8,2602.7,0.96117]
[1646933423497,0.00379078,2602.8,2602.6,2.01204358]
[1646933423699,0.00379078,2602.8,2602.7,0.07722278]
[1646933424304,0.96115,2603.3,2602.7,0.07722278]
[1646933424505,0.00379073,2602.9,2602.7,0.07722278]
[1646933424954,0.00379073,2602.9,2602.7,6.22379196]
[1646933425144,0.00379073,2602.9,2602.8,0.59855164]
[1646933425345,0.3,2603.2,2602.8,0.59855164]
[1646933425546,0.3,2603.2,2602.7,1.03834278]
[1646933425746,0.00392233,2602.9,2602.7,1.03834278]
[1646933426548,0.12302334,2603.5,2602.7,1.03834278]
[1646933426744,0.8208072,2603.4,2602.7,1.03834278]
[1646933426944,0.00399651,2602.9,2602.7,1.03834278]
[1646933427545,0.00399651,2602.9,2602.7,0.96112]
[1646933427745,0.01598362,2603.3,2602.7,0.96112]
[1646933427946,1.0,2603.6,2602.7,0.96112]
[1646933428144,1.0,2603.6,2602.7,4.46112]
[1646933428345,1.0,2603.6,2602.7,0.96112]
[1646933428548,1.0,2603.6,2603.0,0.92515066]
[1646933428803,1.0,2603.6,2603.1,0.96099]
[1646933429208,1.3,2603.6,2603.1,0.96099]
[1646933430405,1.0,2603.6,2603.1,0.96099]
[1646933430608,0.00399499,2603.5,2603.1,0.96099]
[1646933430808,0.00399499,2603.5,2603.1,1.21099]
[1646933431408,7.33,2603.7,2603.2,1.08559301]
[1646933431612,7.33,2603.7,2603.1,1.21099]
[1646933431613,0.06854,2604.0,2603.1,1.21099]
[1646933431911,0.06854,2604.0,2603.2,10.45279293]
[1646933431912,0.00399502,2603.4,2603.2,10.45279293]
[1646933432547,0.06994531,2604.0,2603.2,10.45279293]
[1646933432751,0.06854,2604.0,2603.4,0.96074]
[1646933432951,0.06854,2604.0,2603.4,1.92143]
[1646933433147,0.06854,2604.0,2603.4,11.41348293]
[1646933433549,0.06854,2604.0,2603.6,1.13079314]
[1646933433749,0.06854,2604.0,2603.6,2.09149314]
[1646933434356,0.06854,2604.0,2603.6,0.9607]
[1646933434557,0.06854,2604.0,2603.4,9.49205293]
[1646933435355,0.00387038,2603.8,2603.4,9.49205293]
[1646933435555,0.96471208,2603.8,2603.4,9.49205293]
[1646933436412,0.00379101,2603.7,2603.4,9.49205293]
[1646933437218,0.00021921,2603.7,2603.4,9.49205293]
[1646933437414,11.79,2603.7,2603.4,9.49205293]
[1646933437614,1.6472417,2603.8,2603.4,9.49205293]
[1646933437814,0.6864,2603.8,2603.4,9.49205293]
[1646933438614,0.3,2603.8,2603.4,10.38289172]
[1646933438817,0.3,2603.8,2603.4,11.34366172]
[1646933439218,1.39123864,2604.0,2603.4,11.34366172]
[1646933439219,0.73045864,2604.0,2603.4,11.34366172]
[1646933439820,0.34405864,2604.0,2603.4,11.34366172]
[1646933440068,0.00389889,2603.8,2603.4,11.34366172]
[1646933440265,0.00389889,2603.8,2603.4,1.85160879]
[1646933440670,0.00389889,2603.8,2603.4,0.96077]
[1646933441067,0.34405864,2604.0,2603.4,0.96077]
[1646933441365,0.00389879,2603.8,2603.4,0.96077]
[1646933441766,0.30389879,2603.8,2603.0,1.99265684]
[1646933441969,0.30389879,2603.8,2602.6,4.6466]
[1646933442170,1.18769879,2603.8,2602.7,0.77569597]
[1646933442371,1.18769879,2603.8,2602.5,0.33368911]
[1646933442372,0.9609847,2603.5,2602.5,0.33368911]
[1646933442567,0.9609847,2603.5,2602.6,0.77953356]
[1646933442769,0.9609847,2603.5,2602.7,0.77898053]
[1646933443066,0.9609847,2603.5,2602.7,1.92188]
[1646933443269,0.9609847,2603.5,2602.9,0.96099]
[1646933445011,1.26104,2603.4,2602.8,0.08927815]
[1646933445407,12.09,2603.4,2602.3,0.00369391]
[1646933445607,12.09,2603.4,2602.4,0.08933609]
[1646933445608,12.75123,2603.2,2602.4,0.08933609]
[1646933446010,0.96129,2603.1,2602.4,0.08933609]
[1646933446210,0.96129,2603.1,2602.3,0.00369358]
[1646933446211,12.52198493,2603.0,2602.3,0.00369358]
[1646933446407,0.06854,2602.9,2602.3,0.00369358]
[1646933446609,0.73198493,2603.0,2602.3,0.00369358]
[1646933446812,0.34558493,2603.0,2602.3,0.00369358]
[1646933447012,0.3,2603.0,2602.3,0.96123]
[1646933447212,1.1983,2603.1,2602.5,0.08750028]
[1646933447213,1.4983,2603.1,2602.5,0.08750028]
[1646933447461,1.4983,2603.1,2602.7,1.134365]
[1646933447657,1.1983,2603.1,2602.7,1.134365]
[1646933447851,0.01488742,2603.2,2602.8,0.08560761]
[1646933448252,9.3205304,2603.6,2602.8,0.08560761]
[1646933448453,9.3205304,2603.6,2602.8,0.05739163]
[1646933448655,0.01488695,2603.4,2602.8,0.05739163]
[1646933448856,0.01488695,2603.4,2602.7,1.134365]
[1646933448857,0.9610198,2603.3,2602.7,1.134365]
[1646933449057,0.9610198,2603.3,2602.4,1.92218]
[1646933449058,13.1374198,2603.3,2602.4,1.92218]
[1646933449262,12.1764,2603.1,2602.3,0.00372337]
[1646933449460,12.2271468,2603.0,2602.2,0.25]
[1646933449658,0.05068015,2602.9,2602.2,0.25]
[1646933449858,0.05068015,2602.9,2602.3,0.00372347]
[1646933450058,1.01198015,2602.9,2602.3,0.00372347]
[1646933450263,0.05122975,2602.8,2602.3,0.00372347]
[1646933450658,0.05122975,2602.8,2602.2,1.92244]
[1646933450859,12.87101045,2602.8,2602.3,0.96496875]
[1646933451064,0.3,2602.7,2602.3,0.96496875]
[1646933451499,0.3,2602.7,2602.3,0.00371875]
[1646933451696,0.3537697,2602.7,2602.3,0.00371875]
[1646933451899,0.3537697,2602.7,2602.3,0.69108241]
[1646933452098,0.9612994,2602.6,2602.3,0.00371865]
[1646933452298,1.2612994,2602.6,2602.3,0.00371865]
[1646933453099,1.2612994,2602.6,2602.3,0.69171157]
[1646933453300,1.2612994,2602.6,2602.3,0.69543017]
[1646933453903,1.2612994,2602.6,2602.3,1.65663017]
[1646933453904,0.3,2602.6,2602.3,1.65663017]
[1646933454104,0.3,2602.6,2602.4,0.69171157]
[1646933454305,0.3537697,2602.7,2602.4,0.69171157]
[1646933454705,0.0537697,2602.7,2602.4,0.69171157]
[1646933455149,0.9611933,2602.8,2602.4,0.69171157]
[1646933455350,0.3,2602.7,2602.4,0.69171157]
[1646933456249,1.31086353,2603.0,2602.4,0.69171157]
[1646933456450,0.3,2603.0,2602.5,1.05011206]
[1646933456651,0.3,2603.0,2602.6,0.77684987]
[1646933456850,1.4831,2603.2,2602.7,0.69171157]
[1646933457051,1.4831,2603.2,2602.8,0.69171157]
[1646933457052,0.01487259,2603.1,2602.8,0.69171157]
[1646933457249,0.01487259,2603.1,2602.6,0.0851383]
[1646933457250,0.90597836,2603.0,2602.6,0.0851383]
[1646933457451,0.01487259,2603.1,2603.0,0.76948049]
[1646933457650,0.01487259,2603.1,2603.0,1.43136513]
[1646933457850,0.9609606,2603.3,2603.0,1.43136513]
[1646933458050,0.90601037,2603.2,2603.0,0.76948049]
[1646933458550,0.3,2603.2,2603.1,0.66197212]
[1646933458810,0.90612018,2603.2,2603.0,0.76948049]
[1646933460512,2.2220006,2603.3,2603.0,0.76948049]